[Event "January 2 Late 2024"]
[Site "https://www.chess.com"]
[Date "2024.01.02"]
[Round "3"]
[White "Krzyzanowski, Marcin"]
[Black "Nepomniachtchi, Ian"]
[Result "0-1"]
[Board "6"]
[TimeControl "180+1"]
[WhiteFideId "1132199"]
[BlackFideId "4168119"]
[WhiteElo "2784"]
[BlackElo "3134"]
[WhiteTeam "POL"]
[BlackTeam "RUS"]
[WhiteClock "0:00:01"]
[BlackClock "0:00:38"]

1. e4 {[%clk 0:03:00]}  c5 {[%clk 0:02:59]} 2. Nf3 {[%clk 0:03:00]}  d6 {[%clk 0:03:00]} 3. d4 {[%clk 0:03:00]}  cxd4 {[%clk 0:03:01]} 4. Nxd4 {[%clk 0:03:00]}  Nf6 {[%clk 0:03:02]} 5. Nc3 {[%clk 0:03:01]}  a6 {[%clk 0:03:03]} 6. Be2 {[%clk 0:03:01]}  e5 {[%clk 0:03:03]} 7. Nb3 {[%clk 0:03:01]}  Be7 {[%clk 0:03:02]} 8. O-O {[%clk 0:03:02]}  O-O {[%clk 0:03:03]} 9. Qd3 {[%clk 0:03:02]}  Be6 {[%clk 0:03:02]} 10. Bd2 {[%clk 0:03:02]}  Nbd7 {[%clk 0:03:02]} 11. Nd5 {[%clk 0:02:59]}  Bxd5 {[%clk 0:03:02]} 12. exd5 {[%clk 0:03:00]}  g6 {[%clk 0:03:02]} 13. c4 {[%clk 0:02:58]}  a5 {[%clk 0:03:01]} 14. a4 {[%clk 0:02:57]}  b6 {[%clk 0:03:00]} 15. Rae1 {[%clk 0:02:55]}  Ne8 {[%clk 0:03:00]} 16. Qh3 {[%clk 0:02:55]}  Ng7 {[%clk 0:02:59]} 17. f4 {[%clk 0:02:48]}  Qc7 {[%clk 0:02:48]} 18. Kh1 {[%clk 0:02:40]}  Rac8 {[%clk 0:02:46]} 19. f5 {[%clk 0:02:34]}  Rce8 {[%clk 0:02:37]} 20. Bh6 {[%clk 0:02:32]}  Bf6 {[%clk 0:02:31]} 21. Bg4 {[%clk 0:02:19]}  Nc5 {[%clk 0:02:30]} 22. Nxc5 {[%clk 0:02:14]}  bxc5 {[%clk 0:02:22]} 23. fxg6 {[%clk 0:01:55]}  fxg6 {[%clk 0:02:22]} 24. Be6+ {[%clk 0:01:55]}  Kh8 {[%clk 0:02:21]} 25. Rf3 {[%clk 0:01:42]}  Nxe6 {[%clk 0:02:02]} 26. dxe6 {[%clk 0:00:41]}  Bg7 {[%clk 0:02:01]} 27. Bg5 {[%clk 0:00:37]}  Rxf3 {[%clk 0:01:58]} 28. Qxf3 {[%clk 0:00:38]}  h6 {[%clk 0:01:54]} 29. Bd2 {[%clk 0:00:13]}  Rxe6 {[%clk 0:01:51]} 30. Qa8+ {[%clk 0:00:13]}  Kh7 {[%clk 0:01:51]} 31. Bxa5 {[%clk 0:00:14]}  Qf7 {[%clk 0:01:50]} 32. Bc3 {[%clk 0:00:13]}  Rf6 {[%clk 0:01:47]} 33. Rg1 {[%clk 0:00:11]}  Qxc4 {[%clk 0:01:44]} 34. a5 {[%clk 0:00:11]}  Rf7 {[%clk 0:01:31]} 35. a6 {[%clk 0:00:10]}  Qa4 {[%clk 0:01:24]} 36. Qd5 {[%clk 0:00:08]}  Rd7 {[%clk 0:01:21]} 37. Qe6 {[%clk 0:00:06]}  Qc6 {[%clk 0:01:19]} 38. Rd1 {[%clk 0:00:07]}  Qa4 {[%clk 0:01:14]} 39. Rg1 {[%clk 0:00:05]}  h5 {[%clk 0:01:12]} 40. h3 {[%clk 0:00:03]}  Ra7 {[%clk 0:01:11]} 41. Qxd6 {[%clk 0:00:02]}  Qxa6 {[%clk 0:01:10]} 42. Qxc5 {[%clk 0:00:03]}  Qa4 {[%clk 0:01:06]} 43. Re1 {[%clk 0:00:03]}  Ra6 {[%clk 0:01:04]} 44. Bxe5 {[%clk 0:00:02]}  Qh4 {[%clk 0:00:54]} 45. Bc3 {[%clk 0:00:01]}  Rf6 {[%clk 0:00:49]} 46. Qe3 {[%clk 0:00:01]}  Rf7 {[%clk 0:00:42]} 47. Bxg7 {[%clk 0:00:02]}  Rxg7 {[%clk 0:00:43]} 48. Qe2 {[%clk 0:00:02]}  Qb4 {[%clk 0:00:43]} 49. Qe3 {[%clk 0:00:02]}  Qxb2 {[%clk 0:00:42]} 50. Rf1 {[%clk 0:00:02]}  Qb5 {[%clk 0:00:42]} 51. Rf2 {[%clk 0:00:02]}  Qb4 {[%clk 0:00:41]} 52. Kh2 {[%clk 0:00:02]}  Qd6+ {[%clk 0:00:41]} 53. Qf4 {[%clk 0:00:03]}  Qc5 {[%clk 0:00:41]} 54. Qf6 {[%clk 0:00:03]}  Re7 {[%clk 0:00:39]} 55. Rf3 {[%clk 0:00:02]}  Qc7+ {[%clk 0:00:39]} 56. Qf4 {[%clk 0:00:02]}  Qd7 {[%clk 0:00:40]} 57. Qf6 {[%clk 0:00:02]}  Rg7 {[%clk 0:00:39]} 58. Qf4 {[%clk 0:00:02]}  Qe6 {[%clk 0:00:39]} 59. Re3 {[%clk 0:00:02]}  Qa2 {[%clk 0:00:38]} 60. Re5 {[%clk 0:00:03]}  Qc2 {[%clk 0:00:37]} 61. Qe4 {[%clk 0:00:03]}  Qc7 {[%clk 0:00:37]} 62. Qf4 {[%clk 0:00:02]}  Rf7 {[%clk 0:00:36]} 63. Rxh5+ {[%clk 0:00:02]}  gxh5 {[%clk 0:00:36]} 64. Qxc7 {[%clk 0:00:02]}  Rxc7 {[%clk 0:00:36]} 65. Kg3 {[%clk 0:00:02]}  Kg6 {[%clk 0:00:37]} 66. Kh4 {[%clk 0:00:03]}  Rc3 {[%clk 0:00:37]} 67. g3 {[%clk 0:00:04]}  Ra3 {[%clk 0:00:36]} 68. g4 {[%clk 0:00:04]}  Ra4 {[%clk 0:00:37]} 69. Kg3 {[%clk 0:00:01]}  hxg4 {[%clk 0:00:38]} 0-1

[Event "January 2 Late 2024"]
[Site "https://www.chess.com"]
[Date "2024.01.02"]
[Round "3"]
[White "Timmermans, Mark"]
[Black "Paravyan, David"]
[Result "0-1"]
[Board "7"]
[TimeControl "180+1"]
[WhiteFideId "1026399"]
[BlackFideId "4194985"]
[WhiteElo "2772"]
[BlackElo "3109"]
[WhiteTeam "NED"]
[BlackTeam "FID"]
[WhiteClock "0:00:17"]
[BlackClock "0:00:30"]

1. b4 {[%clk 0:03:00]}  e5 {[%clk 0:02:59]} 2. Bb2 {[%clk 0:02:58]}  Bxb4 {[%clk 0:02:59]} 3. Bxe5 {[%clk 0:02:58]}  Nf6 {[%clk 0:03:00]} 4. Nc3 {[%clk 0:02:59]}  Be7 {[%clk 0:02:47]} 5. e3 {[%clk 0:02:59]}  d5 {[%clk 0:02:46]} 6. Nf3 {[%clk 0:02:58]}  O-O {[%clk 0:02:46]} 7. Bg3 {[%clk 0:02:59]}  c6 {[%clk 0:02:45]} 8. Be2 {[%clk 0:02:58]}  Bf5 {[%clk 0:02:44]} 9. O-O {[%clk 0:02:58]}  Nbd7 {[%clk 0:02:42]} 10. Rb1 {[%clk 0:02:57]}  Qc8 {[%clk 0:02:41]} 11. Qc1 {[%clk 0:02:52]}  Nh5 {[%clk 0:02:41]} 12. Qb2 {[%clk 0:02:52]}  Nxg3 {[%clk 0:02:40]} 13. hxg3 {[%clk 0:02:38]}  Rb8 {[%clk 0:02:40]} 14. Bd3 {[%clk 0:02:32]}  Bg4 {[%clk 0:02:21]} 15. Ne2 {[%clk 0:02:33]}  Nc5 {[%clk 0:02:20]} 16. Nf4 {[%clk 0:02:25]}  Bf6 {[%clk 0:02:18]} 17. Qa3 {[%clk 0:02:24]}  Nxd3 {[%clk 0:02:17]} 18. cxd3 {[%clk 0:02:24]}  a6 {[%clk 0:02:08]} 19. Rfc1 {[%clk 0:02:19]}  Qf5 {[%clk 0:02:04]} 20. Qd6 {[%clk 0:02:12]}  Bxf3 {[%clk 0:02:01]} 21. gxf3 {[%clk 0:02:12]}  Be5 {[%clk 0:02:01]} 22. Qe7 {[%clk 0:02:07]}  Bxf4 {[%clk 0:02:00]} 23. gxf4 {[%clk 0:02:02]}  Qxd3 {[%clk 0:01:59]} 24. Rxb7 {[%clk 0:02:01]}  Rxb7 {[%clk 0:01:58]} 25. Qxb7 {[%clk 0:02:02]}  Qxd2 {[%clk 0:01:58]} 26. Qxc6 {[%clk 0:02:03]}  d4 {[%clk 0:01:51]} 27. Rc2 {[%clk 0:01:48]}  Qe1+ {[%clk 0:01:49]} 28. Kg2 {[%clk 0:01:48]}  dxe3 {[%clk 0:01:49]} 29. fxe3 {[%clk 0:01:49]}  Qxe3 {[%clk 0:01:48]} 30. Qxa6 {[%clk 0:01:49]}  Qxf4 {[%clk 0:01:48]} 31. a4 {[%clk 0:01:43]}  h5 {[%clk 0:01:48]} 32. Qc4 {[%clk 0:01:40]}  Qxc4 {[%clk 0:01:36]} 33. Rxc4 {[%clk 0:01:41]}  Ra8 {[%clk 0:01:36]} 34. Kg3 {[%clk 0:01:35]}  Ra5 {[%clk 0:01:32]} 35. Rb4 {[%clk 0:01:32]}  g6 {[%clk 0:01:32]} 36. Kf2 {[%clk 0:01:26]}  Kg7 {[%clk 0:01:32]} 37. Ke3 {[%clk 0:01:26]}  g5 {[%clk 0:01:32]} 38. Rb5 {[%clk 0:01:21]}  Rxa4 {[%clk 0:01:28]} 39. Rxg5+ {[%clk 0:01:22]}  Kh6 {[%clk 0:01:28]} 40. Rg8 {[%clk 0:01:22]}  h4 {[%clk 0:01:12]} 41. Kf2 {[%clk 0:01:21]}  Ra2+ {[%clk 0:01:10]} 42. Ke3 {[%clk 0:01:19]}  Ra6 {[%clk 0:01:05]} 43. Kf4 {[%clk 0:01:13]}  Kh7 {[%clk 0:01:02]} 44. Rg1 {[%clk 0:01:01]}  Rf6+ {[%clk 0:01:02]} 45. Ke4 {[%clk 0:01:00]}  Rh6 {[%clk 0:00:53]} 46. Kf4 {[%clk 0:00:58]}  Rf6+ {[%clk 0:00:50]} 47. Ke4 {[%clk 0:00:58]}  Kh6 {[%clk 0:00:48]} 48. f4 {[%clk 0:00:45]}  Rg6 {[%clk 0:00:48]} 49. Rh1 {[%clk 0:00:43]}  Kh5 {[%clk 0:00:47]} 50. Kf5 {[%clk 0:00:38]}  Ra6 {[%clk 0:00:45]} 51. Rh2 {[%clk 0:00:38]}  Ra5+ {[%clk 0:00:44]} 52. Kf6 {[%clk 0:00:38]}  Kg4 {[%clk 0:00:45]} 53. Kxf7 {[%clk 0:00:37]}  Kg3 {[%clk 0:00:37]} 54. Rh1 {[%clk 0:00:28]}  Rf5+ {[%clk 0:00:37]} 55. Ke6 {[%clk 0:00:28]}  Rxf4 {[%clk 0:00:37]} 56. Rg1+ {[%clk 0:00:29]}  Kf2 {[%clk 0:00:36]} 57. Rg8 {[%clk 0:00:21]}  h3 {[%clk 0:00:36]} 58. Ke5 {[%clk 0:00:20]}  Rh4 {[%clk 0:00:33]} 59. Rf8+ {[%clk 0:00:18]}  Ke2 {[%clk 0:00:32]} 60. Ra8 {[%clk 0:00:18]}  h2 {[%clk 0:00:31]} 61. Ra2+ {[%clk 0:00:18]}  Kd3 {[%clk 0:00:29]} 62. Ra3+ {[%clk 0:00:17]}  Kc2 {[%clk 0:00:30]} 0-1

[Event "January 2 Late 2024"]
[Site "https://www.chess.com"]
[Date "2024.01.02"]
[Round "3"]
[White "Song, Ethan"]
[Black "Duda, Jan-Krzysztof"]
[Result "1-0"]
[Board "8"]
[TimeControl "180+1"]
[WhiteFideId "62900412"]
[BlackFideId "1170546"]
[WhiteElo "2749"]
[BlackElo "3062"]
[WhiteTeam "CAN"]
[BlackTeam "POL"]
[WhiteClock "0:00:04"]
[BlackClock "0:00:00"]

1. e4 {[%clk 0:03:00]}  c6 {[%clk 0:02:58]} 2. d4 {[%clk 0:03:00]}  d5 {[%clk 0:02:59]} 3. Nc3 {[%clk 0:03:01]}  dxe4 {[%clk 0:02:58]} 4. Nxe4 {[%clk 0:03:02]}  Nf6 {[%clk 0:02:58]} 5. Nxf6+ {[%clk 0:03:02]}  exf6 {[%clk 0:02:59]} 6. c3 {[%clk 0:03:02]}  Bd6 {[%clk 0:02:59]} 7. Bd3 {[%clk 0:03:03]}  O-O {[%clk 0:03:00]} 8. Qc2 {[%clk 0:03:04]}  Re8+ {[%clk 0:03:00]} 9. Ne2 {[%clk 0:03:04]}  h5 {[%clk 0:03:01]} 10. O-O {[%clk 0:03:04]}  h4 {[%clk 0:02:57]} 11. Be3 {[%clk 0:03:00]}  Nd7 {[%clk 0:02:54]} 12. Rfe1 {[%clk 0:02:58]}  Nf8 {[%clk 0:02:53]} 13. h3 {[%clk 0:02:59]}  Bc7 {[%clk 0:02:50]} 14. Qd2 {[%clk 0:02:40]}  Qd6 {[%clk 0:02:39]} 15. f4 {[%clk 0:02:38]}  f5 {[%clk 0:02:32]} 16. c4 {[%clk 0:02:36]}  Bd7 {[%clk 0:02:15]} 17. c5 {[%clk 0:02:34]}  Qg6 {[%clk 0:02:11]} 18. Nc3 {[%clk 0:02:27]}  Rad8 {[%clk 0:02:06]} 19. Qf2 {[%clk 0:02:25]}  Qh6 {[%clk 0:01:57]} 20. Rad1 {[%clk 0:02:16]}  Ng6 {[%clk 0:01:51]} 21. Rf1 {[%clk 0:02:06]}  Rxe3 {[%clk 0:01:39]} 22. Qxe3 {[%clk 0:02:06]}  Nxf4 {[%clk 0:01:40]} 23. Qf3 {[%clk 0:02:01]}  Be6 {[%clk 0:01:38]} 24. Bc2 {[%clk 0:01:53]}  Qf6 {[%clk 0:01:18]} 25. Qf2 {[%clk 0:01:23]}  Qg5 {[%clk 0:01:10]} 26. Kh1 {[%clk 0:01:18]}  g6 {[%clk 0:00:39]} 27. Bb3 {[%clk 0:01:14]}  Nh5 {[%clk 0:00:37]} 28. Bxe6 {[%clk 0:01:06]}  Ng3+ {[%clk 0:00:34]} 29. Kg1 {[%clk 0:01:06]}  Nxf1 {[%clk 0:00:34]} 30. Bxf7+ {[%clk 0:01:03]}  Kxf7 {[%clk 0:00:35]} 31. Rxf1 {[%clk 0:00:59]}  Bg3 {[%clk 0:00:23]} 32. Qf3 {[%clk 0:00:59]}  Rxd4 {[%clk 0:00:23]} 33. Ne4 {[%clk 0:00:56]}  Qe7 {[%clk 0:00:23]} 34. Nxg3 {[%clk 0:00:52]}  Qxc5 {[%clk 0:00:20]} 35. Kh1 {[%clk 0:00:43]}  hxg3 {[%clk 0:00:20]} 36. Qxg3 {[%clk 0:00:44]}  Qe7 {[%clk 0:00:11]} 37. Qb3+ {[%clk 0:00:44]}  Kg7 {[%clk 0:00:11]} 38. Qc3 {[%clk 0:00:45]}  c5 {[%clk 0:00:11]} 39. b4 {[%clk 0:00:40]}  b6 {[%clk 0:00:10]} 40. bxc5 {[%clk 0:00:41]}  Qxc5 {[%clk 0:00:10]} 41. Qg3 {[%clk 0:00:36]}  Kh7 {[%clk 0:00:08]} 42. Re1 {[%clk 0:00:35]}  a5 {[%clk 0:00:07]} 43. Qg5 {[%clk 0:00:34]}  Rd7 {[%clk 0:00:05]} 44. Qh4+ {[%clk 0:00:34]}  Kg7 {[%clk 0:00:05]} 45. Qg5 {[%clk 0:00:34]}  Qd6 {[%clk 0:00:05]} 46. Qe3 {[%clk 0:00:28]}  Qf6 {[%clk 0:00:05]} 47. Qb3 {[%clk 0:00:26]}  Rd6 {[%clk 0:00:03]} 48. Re8 {[%clk 0:00:22]}  Qd4 {[%clk 0:00:03]} 49. Qg8+ {[%clk 0:00:19]}  Kh6 {[%clk 0:00:04]} 50. Qf8+ {[%clk 0:00:20]}  Kh5 {[%clk 0:00:04]} 51. Re7 {[%clk 0:00:16]}  Kg5 {[%clk 0:00:03]} 52. Qe8 {[%clk 0:00:11]}  Kf4 {[%clk 0:00:02]} 53. Re1 {[%clk 0:00:09]}  Kg3 {[%clk 0:00:03]} 54. Qe2 {[%clk 0:00:09]}  Qf2 {[%clk 0:00:02]} 55. Qe5+ {[%clk 0:00:06]}  Kh4 {[%clk 0:00:00]} 56. Qh8+ {[%clk 0:00:04]} 1-0

[Event "January 2 Late 2024"]
[Site "https://www.chess.com"]
[Date "2024.01.02"]
[Round "3"]
[White "Oparin, Grigoriy"]
[Black "Tristan, Leonardo"]
[Result "1-0"]
[Board "9"]
[TimeControl "180+1"]
[WhiteFideId "24125890"]
[BlackFideId "113816"]
[WhiteElo "3053"]
[BlackElo "2748"]
[WhiteTeam "USA"]
[BlackTeam "ARG"]
[WhiteClock "0:01:07"]
[BlackClock "0:00:02"]

1. Nf3 {[%clk 0:03:00]}  d5 {[%clk 0:02:59]} 2. c4 {[%clk 0:03:01]}  e6 {[%clk 0:02:58]} 3. g3 {[%clk 0:03:00]}  Nf6 {[%clk 0:02:57]} 4. Bg2 {[%clk 0:03:01]}  Be7 {[%clk 0:02:58]} 5. O-O {[%clk 0:03:00]}  O-O {[%clk 0:02:58]} 6. b3 {[%clk 0:03:01]}  a5 {[%clk 0:02:58]} 7. Nc3 {[%clk 0:02:55]}  c6 {[%clk 0:02:58]} 8. d4 {[%clk 0:02:53]}  b6 {[%clk 0:02:57]} 9. Nd2 {[%clk 0:02:49]}  Ba6 {[%clk 0:02:56]} 10. e4 {[%clk 0:02:45]}  b5 {[%clk 0:02:28]} 11. exd5 {[%clk 0:02:29]}  bxc4 {[%clk 0:02:02]} 12. dxc6 {[%clk 0:02:20]}  cxb3 {[%clk 0:02:01]} 13. Re1 {[%clk 0:02:19]}  Nxc6 {[%clk 0:01:14]} 14. Bxc6 {[%clk 0:02:15]}  Rc8 {[%clk 0:01:14]} 15. Bb5 {[%clk 0:02:16]}  Rxc3 {[%clk 0:01:08]} 16. Bxa6 {[%clk 0:02:15]}  Qb6 {[%clk 0:01:09]} 17. Bb2 {[%clk 0:01:55]}  Rc2 {[%clk 0:01:06]} 18. Bd3 {[%clk 0:01:56]}  Rxb2 {[%clk 0:01:05]} 19. Nc4 {[%clk 0:01:56]}  Qxd4 {[%clk 0:01:05]} 20. Nxb2 {[%clk 0:01:57]}  Qxb2 {[%clk 0:01:04]} 21. Qxb3 {[%clk 0:01:55]}  Qxb3 {[%clk 0:00:56]} 22. axb3 {[%clk 0:01:56]}  Bb4 {[%clk 0:00:57]} 23. Red1 {[%clk 0:01:56]}  g5 {[%clk 0:00:52]} 24. Rac1 {[%clk 0:01:53]}  Kg7 {[%clk 0:00:52]} 25. Rc6 {[%clk 0:01:50]}  Rd8 {[%clk 0:00:47]} 26. Be2 {[%clk 0:01:50]}  Rb8 {[%clk 0:00:45]} 27. Bc4 {[%clk 0:01:48]}  Rb7 {[%clk 0:00:41]} 28. Kg2 {[%clk 0:01:48]}  Ne4 {[%clk 0:00:34]} 29. Rd4 {[%clk 0:01:42]}  Nc5 {[%clk 0:00:28]} 30. h4 {[%clk 0:01:42]}  h6 {[%clk 0:00:27]} 31. h5 {[%clk 0:01:38]}  Kf6 {[%clk 0:00:26]} 32. Rc8 {[%clk 0:01:32]}  Bc3 {[%clk 0:00:22]} 33. Rd1 {[%clk 0:01:21]}  Bb4 {[%clk 0:00:18]} 34. Rh8 {[%clk 0:01:17]}  Kg7 {[%clk 0:00:18]} 35. Rdd8 {[%clk 0:01:17]}  Ne4 {[%clk 0:00:11]} 36. Rdg8+ {[%clk 0:01:17]}  Kf6 {[%clk 0:00:11]} 37. Rxh6+ {[%clk 0:01:18]}  Ke5 {[%clk 0:00:12]} 38. f3 {[%clk 0:01:14]}  Nd6 {[%clk 0:00:06]} 39. Rxg5+ {[%clk 0:01:15]}  Kd4 {[%clk 0:00:06]} 40. Rh8 {[%clk 0:01:11]}  Nxc4 {[%clk 0:00:05]} 41. bxc4 {[%clk 0:01:11]}  Ra7 {[%clk 0:00:06]} 42. h6 {[%clk 0:01:09]}  Bc3 {[%clk 0:00:02]} 43. h7 {[%clk 0:01:08]}  a4 {[%clk 0:00:01]} 44. Rd8+ {[%clk 0:01:07]}  Ke3 {[%clk 0:00:02]} 45. Rg4 {[%clk 0:01:07]}  a3 {[%clk 0:00:02]} 46. Re4# {[%clk 0:01:07]} 1-0

[Event "January 2 Late 2024"]
[Site "https://www.chess.com"]
[Date "2024.01.02"]
[Round "3"]
[White "Subelj, Jan"]
[Black "Martinez Alcantara, Jose Eduardo"]
[Result "1/2-1/2"]
[Board "10"]
[TimeControl "180+1"]
[WhiteFideId "14618583"]
[BlackFideId "3805662"]
[WhiteElo "2747"]
[BlackElo "3052"]
[WhiteTeam "SLO"]
[BlackTeam "PER"]
[WhiteClock "0:00:16"]
[BlackClock "0:00:02"]

1. d4 {[%clk 0:03:00]}  Nf6 {[%clk 0:02:58]} 2. Bg5 {[%clk 0:03:00]}  d5 {[%clk 0:02:54]} 3. Bxf6 {[%clk 0:02:59]}  exf6 {[%clk 0:02:55]} 4. e3 {[%clk 0:02:58]}  c6 {[%clk 0:02:56]} 5. c4 {[%clk 0:02:57]}  dxc4 {[%clk 0:02:50]} 6. Bxc4 {[%clk 0:02:55]}  Bd6 {[%clk 0:02:51]} 7. Nc3 {[%clk 0:02:54]}  O-O {[%clk 0:02:51]} 8. Nf3 {[%clk 0:02:55]}  Nd7 {[%clk 0:02:50]} 9. O-O {[%clk 0:02:53]}  f5 {[%clk 0:02:51]} 10. g3 {[%clk 0:02:52]}  Qe7 {[%clk 0:02:50]} 11. Re1 {[%clk 0:02:51]}  Nf6 {[%clk 0:02:50]} 12. Rc1 {[%clk 0:02:50]}  Be6 {[%clk 0:02:49]} 13. Bf1 {[%clk 0:02:49]}  Rad8 {[%clk 0:02:47]} 14. Bg2 {[%clk 0:02:48]}  Rfe8 {[%clk 0:02:37]} 15. a3 {[%clk 0:02:41]}  g6 {[%clk 0:02:25]} 16. Na4 {[%clk 0:02:39]}  Bc8 {[%clk 0:02:21]} 17. Nc5 {[%clk 0:02:38]}  h5 {[%clk 0:02:12]} 18. Nd3 {[%clk 0:02:38]}  Ng4 {[%clk 0:02:11]} 19. h4 {[%clk 0:02:36]}  Be6 {[%clk 0:02:08]} 20. Ng5 {[%clk 0:02:34]}  Bc8 {[%clk 0:02:03]} 21. Qb3 {[%clk 0:02:33]}  Kg7 {[%clk 0:02:00]} 22. Qc3 {[%clk 0:01:59]}  f6 {[%clk 0:01:59]} 23. Nh3 {[%clk 0:01:55]}  Be6 {[%clk 0:01:55]} 24. Nhf4 {[%clk 0:01:47]}  Bf7 {[%clk 0:01:55]} 25. d5 {[%clk 0:01:41]}  Be5 {[%clk 0:01:28]} 26. Nxe5 {[%clk 0:01:35]}  fxe5 {[%clk 0:01:28]} 27. dxc6 {[%clk 0:01:35]}  bxc6 {[%clk 0:01:29]} 28. Bxc6 {[%clk 0:01:34]}  Rc8 {[%clk 0:01:24]} 29. Nd3 {[%clk 0:01:18]}  Red8 {[%clk 0:01:04]} 30. f3 {[%clk 0:01:06]}  Rd6 {[%clk 0:01:04]} 31. fxg4 {[%clk 0:01:02]}  Rdxc6 {[%clk 0:01:04]} 32. Qa5 {[%clk 0:00:54]}  Rxc1 {[%clk 0:00:59]} 33. Rxc1 {[%clk 0:00:55]}  Rxc1+ {[%clk 0:00:58]} 34. Nxc1 {[%clk 0:00:56]}  Qd6 {[%clk 0:00:50]} 35. Qc3 {[%clk 0:00:55]}  Qd1+ {[%clk 0:00:49]} 36. Kf2 {[%clk 0:00:55]}  hxg4 {[%clk 0:00:42]} 37. Qxe5+ {[%clk 0:00:50]}  Kg8 {[%clk 0:00:39]} 38. Ne2 {[%clk 0:00:49]}  Qh1 {[%clk 0:00:35]} 39. Nf4 {[%clk 0:00:47]}  Qf3+ {[%clk 0:00:35]} 40. Ke1 {[%clk 0:00:46]}  Qxg3+ {[%clk 0:00:35]} 41. Kd2 {[%clk 0:00:47]}  Qxh4 {[%clk 0:00:28]} 42. Qb8+ {[%clk 0:00:47]}  Kh7 {[%clk 0:00:28]} 43. Qc7 {[%clk 0:00:47]}  Qf6 {[%clk 0:00:26]} 44. Qxa7 {[%clk 0:00:47]}  g5 {[%clk 0:00:24]} 45. Ne2 {[%clk 0:00:47]}  Kg6 {[%clk 0:00:23]} 46. Qc5 {[%clk 0:00:45]}  Qxb2+ {[%clk 0:00:22]} 47. Kd3 {[%clk 0:00:43]}  Qb3+ {[%clk 0:00:17]} 48. Kd2 {[%clk 0:00:44]}  Be6 {[%clk 0:00:15]} 49. Nd4 {[%clk 0:00:43]}  Qb2+ {[%clk 0:00:15]} 50. Kd3 {[%clk 0:00:43]}  Qb1+ {[%clk 0:00:14]} 51. Kd2 {[%clk 0:00:44]}  g3 {[%clk 0:00:12]} 52. Qd6 {[%clk 0:00:37]}  Qa2+ {[%clk 0:00:12]} 53. Kd3 {[%clk 0:00:30]}  Qc4+ {[%clk 0:00:12]} 54. Kd2 {[%clk 0:00:30]}  Qa2+ {[%clk 0:00:13]} 55. Kd3 {[%clk 0:00:30]}  Qd5 {[%clk 0:00:07]} 56. Qxg3 {[%clk 0:00:29]}  Qc4+ {[%clk 0:00:08]} 57. Kd2 {[%clk 0:00:29]}  Qa2+ {[%clk 0:00:09]} 58. Ke1 {[%clk 0:00:26]}  Qxa3 {[%clk 0:00:08]} 59. Qe5 {[%clk 0:00:19]}  Bd7 {[%clk 0:00:06]} 60. Qd5 {[%clk 0:00:18]}  Qxe3+ {[%clk 0:00:06]} 61. Kf1 {[%clk 0:00:16]}  Qe7 {[%clk 0:00:06]} 62. Kf2 {[%clk 0:00:15]}  f4 {[%clk 0:00:05]} 63. Nf3 {[%clk 0:00:14]}  Qe3+ {[%clk 0:00:05]} 64. Kg2 {[%clk 0:00:15]}  g4 {[%clk 0:00:01]} 65. Ne5+ {[%clk 0:00:14]}  Kf6 {[%clk 0:00:01]} 66. Nxd7+ {[%clk 0:00:14]}  Ke7 {[%clk 0:00:02]} 67. Ne5 {[%clk 0:00:14]}  f3+ {[%clk 0:00:02]} 68. Nxf3 {[%clk 0:00:14]}  gxf3+ {[%clk 0:00:03]} 69. Qxf3 {[%clk 0:00:15]}  Qxf3+ {[%clk 0:00:02]} 70. Kxf3 {[%clk 0:00:16]} 1/2-1/2

[Event "January 2 Late 2024"]
[Site "https://www.chess.com"]
[Date "2024.01.02"]
[Round "3"]
[White "Lie, Kjetil A."]
[Black "Fedoseev, Vladimir"]
[Result "1-0"]
[Board "13"]
[TimeControl "180+1"]
[WhiteFideId "1501984"]
[BlackFideId "24130737"]
[WhiteElo "2744"]
[BlackElo "3033"]
[WhiteTeam "NOR"]
[BlackTeam "SLO"]
[WhiteClock "0:00:14"]
[BlackClock "0:00:00"]

1. c4 {[%clk 0:03:00]}  e5 {[%clk 0:02:51]} 2. g3 {[%clk 0:03:01]}  Nc6 {[%clk 0:02:51]} 3. Bg2 {[%clk 0:03:01]}  g6 {[%clk 0:02:52]} 4. Nc3 {[%clk 0:03:00]}  Bg7 {[%clk 0:02:53]} 5. e4 {[%clk 0:03:01]}  d6 {[%clk 0:02:51]} 6. Nge2 {[%clk 0:03:01]}  f5 {[%clk 0:02:49]} 7. d3 {[%clk 0:03:02]}  Nf6 {[%clk 0:02:49]} 8. Nd5 {[%clk 0:03:02]}  O-O {[%clk 0:02:48]} 9. Bg5 {[%clk 0:03:02]}  fxe4 {[%clk 0:02:44]} 10. dxe4 {[%clk 0:03:01]}  Be6 {[%clk 0:02:38]} 11. O-O {[%clk 0:03:00]}  Qd7 {[%clk 0:02:37]} 12. Rc1 {[%clk 0:02:53]}  b6 {[%clk 0:02:27]} 13. Qd2 {[%clk 0:02:41]}  a5 {[%clk 0:02:25]} 14. b3 {[%clk 0:02:35]}  Rf7 {[%clk 0:02:17]} 15. f3 {[%clk 0:02:13]}  Raf8 {[%clk 0:01:33]} 16. a3 {[%clk 0:02:12]}  Nd8 {[%clk 0:01:23]} 17. b4 {[%clk 0:02:08]}  Nb7 {[%clk 0:01:23]} 18. Rfd1 {[%clk 0:01:57]}  Kh8 {[%clk 0:01:15]} 19. Nxf6 {[%clk 0:01:43]}  Bxf6 {[%clk 0:01:15]} 20. Bxf6+ {[%clk 0:01:44]}  Rxf6 {[%clk 0:01:16]} 21. c5 {[%clk 0:01:45]}  bxc5 {[%clk 0:00:45]} 22. bxc5 {[%clk 0:01:40]}  Qe7 {[%clk 0:00:46]} 23. cxd6 {[%clk 0:01:27]}  cxd6 {[%clk 0:00:45]} 24. Rc6 {[%clk 0:01:25]}  Bb3 {[%clk 0:00:42]} 25. Rdc1 {[%clk 0:01:21]}  Nc5 {[%clk 0:00:31]} 26. Qxa5 {[%clk 0:01:20]}  Bg8 {[%clk 0:00:26]} 27. Qc7 {[%clk 0:01:11]}  Qxc7 {[%clk 0:00:19]} 28. Rxc7 {[%clk 0:01:11]}  Ra8 {[%clk 0:00:20]} 29. Rc3 {[%clk 0:01:09]}  g5 {[%clk 0:00:20]} 30. Rc6 {[%clk 0:01:03]}  Kg7 {[%clk 0:00:20]} 31. g4 {[%clk 0:01:00]}  Bf7 {[%clk 0:00:16]} 32. Ng3 {[%clk 0:01:00]}  Bg6 {[%clk 0:00:16]} 33. Bf1 {[%clk 0:00:53]}  Raf8 {[%clk 0:00:12]} 34. Nf5+ {[%clk 0:00:49]}  Bxf5 {[%clk 0:00:12]} 35. gxf5 {[%clk 0:00:49]}  g4 {[%clk 0:00:11]} 36. fxg4 {[%clk 0:00:39]}  Nxe4 {[%clk 0:00:11]} 37. Rd3 {[%clk 0:00:40]}  Rd8 {[%clk 0:00:09]} 38. Bg2 {[%clk 0:00:37]}  Ng5 {[%clk 0:00:02]} 39. a4 {[%clk 0:00:37]}  h5 {[%clk 0:00:01]} 40. h3 {[%clk 0:00:33]}  hxg4 {[%clk 0:00:01]} 41. hxg4 {[%clk 0:00:34]}  e4 {[%clk 0:00:01]} 42. Rd4 {[%clk 0:00:32]}  d5 {[%clk 0:00:01]} 43. Rxf6 {[%clk 0:00:22]}  Kxf6 {[%clk 0:00:02]} 44. a5 {[%clk 0:00:22]}  Ke5 {[%clk 0:00:02]} 45. Ra4 {[%clk 0:00:21]}  d4 {[%clk 0:00:02]} 46. Kf2 {[%clk 0:00:16]}  d3 {[%clk 0:00:02]} 47. Ke1 {[%clk 0:00:16]}  e3 {[%clk 0:00:00]} 48. Ra1 {[%clk 0:00:14]} 1-0